fUSD/lending_fUSD_20260318
["ID","MTS","AMOUNT","RATE_DAILY","PERIOD"]
[408535396,1773855042020,-500.0,0.00015899,2]
[408535397,1773855042029,-500.0,0.00015899,2]
[408535398,1773855042040,-500.0,0.00015899,2]
[408535399,1773855042052,-500.0,0.00015899,2]
[408535400,1773855042062,-500.0,0.00015899,2]
[408535401,1773855042072,-3128.0,0.000159,5]
[408535402,1773855042083,-6831.85231635,0.000159,3]
[408535403,1773855042092,-1000.0,0.000159,2]
[408535404,1773855042101,-10000.0,0.000159,2]
[408535405,1773855042111,-1500000.0,0.000159,2]
[408535406,1773855042123,-11701.93,0.000159,2]
[408535407,1773855042133,-151.0,0.000159,2]
[408535408,1773855042142,-211.23776,0.000159,2]
[408535409,1773855042151,-211.23776,0.000159,2]
[408535410,1773855042160,-211.23776,0.000159,2]
[408535411,1773855042169,-211.23776,0.000159,2]
[408535412,1773855042179,-211.23776,0.000159,2]
[408535413,1773855042188,-211.23776,0.000159,2]
[408535414,1773855042198,-211.23776,0.000159,2]
[408535415,1773855042207,-211.23776,0.000159,2]
[408535416,1773855042216,-510.13818395,0.000159,2]
[408535417,1773855042225,-151.0,0.000159,2]
[408535418,1773855042235,-151.0,0.000159,2]
[408535419,1773855042244,-6505.23252365,0.000159,2]
[408535420,1773855042253,-1371.0,0.000159,5]
[408535421,1773855042263,-600.0,0.000159,5]
[408535422,1773855042272,-237.143998,0.000159,2]
[408535423,1773855042284,-237.143998,0.000159,2]
[408535424,1773855042293,-237.143998,0.000159,2]
[408535425,1773855042302,-237.143998,0.000159,2]
[408535426,1773855042311,-151.0,0.000159,2]
[408535427,1773855042320,-301.6309469,0.000159,2]
[408535428,1773855042330,-159.65926722,0.000159,2]
[408535429,1773855042339,-600.0,0.000159,5]
[408535430,1773855042348,-2721.71730092,0.000159,2]
[408535431,1773855042357,-1988.65371815,0.000159,2]
[408535432,1773855042366,-31798.94335068,0.000159,2]
[408535433,1773855042375,-979.16666667,0.000159,2]
[408535434,1773855042385,-160.0,0.000159,2]
[408535435,1773855042394,-168.0,0.00015905,2]
[408535436,1773855042404,-1000.0,0.00015944,2]
[408535437,1773855042413,-1000.0,0.00015944,2]
[408535438,1773855042423,-3855.13087091,0.00015956,2]
[408535439,1773855042432,-1000.0,0.00015965,2]
[408535440,1773855042442,-500.0,0.00015965,2]
[408535441,1773855042451,-500.38785834,0.00015973,2]
[408535442,1773855042461,-500.0,0.00015973,2]
[408535443,1773855042470,-500.0,0.00015973,2]
[408535444,1773855042480,-500.0,0.00015973,2]
[408535445,1773855042490,-500.0,0.00015973,2]
[408535446,1773855042500,-500.0,0.00015973,2]
[408535447,1773855042510,-500.0,0.00015973,2]
[408535448,1773855042520,-500.0,0.00015973,2]
[408535449,1773855042529,-500.0,0.00015973,2]
[408535450,1773855042539,-502.73508484,0.00015973,2]
[408535451,1773855042549,-336.94661194,0.00015973,2]
[408535452,1773855042558,-163.19287474,0.00015973,2]
[408535453,1773855042567,-500.0,0.00015973,2]
[408535454,1773855042577,-500.0,0.00015973,2]
[408535455,1773855042586,-500.0,0.00015973,2]
[408535457,1773855042597,-500.0,0.00015973,2]
[408535459,1773855042607,-500.0,0.00015973,2]
[408535461,1773855042616,-500.0,0.00015973,2]
[408535462,1773855042626,-500.0,0.00015973,2]
[408535463,1773855042635,-159.10669946,0.00015973,2]
[408535464,1773855042644,-500.0,0.00015973,2]
[408535465,1773855042654,-303.14374679,0.00015973,2]
[408535466,1773855042664,-526.34198136,0.00015973,2]
[408535467,1773855042674,-401.96832496,0.00015973,2]
[408535468,1773855042684,-177.88795057,0.00015973,2]
[408535469,1773855042694,-500.0,0.00015973,2]
[408535472,1773855042705,-517.7204554,0.00015973,2]
[408535473,1773855042715,-500.0,0.00015973,2]
[408535475,1773855042724,-161.50794753,0.00015973,2]
[408535476,1773855042734,-500.0,0.00015973,2]
[408535477,1773855042744,-164.62600278,0.00015973,2]
[408535478,1773855042754,-160.12298016,0.00015973,2]
[408535479,1773855042764,-500.0,0.00015973,2]
[408535480,1773855042775,-162.69740995,0.00015973,2]
[408535482,1773855042785,-500.0,0.00015973,2]
[408535483,1773855042795,-500.0,0.00015973,2]
[408535484,1773855042806,-210.47030904,0.00015973,2]
[408535485,1773855042816,-500.0,0.00015973,2]
[408535486,1773855042826,-380.30178366,0.00015973,2]
[408535487,1773855042835,-163.96638651,0.00015973,2]
[408535488,1773855042845,-514.55725178,0.00015973,2]
[408535489,1773855042855,-500.0,0.00015973,2]
[408535490,1773855042865,-500.0,0.00015973,2]
[408535491,1773855042876,-500.0,0.00015973,2]
[408535492,1773855042886,-500.0,0.00015973,2]
[408535493,1773855042896,-210.44909634,0.00015973,2]
[408535494,1773855042906,-382.43871643,0.00015973,2]
[408535495,1773855042916,-500.0,0.00015973,2]
[408535496,1773855042925,-500.0,0.00015973,2]
[408535497,1773855042935,-187.47382393,0.00015973,2]
[408535498,1773855042945,-500.0,0.00015973,2]
[408535499,1773855042955,-500.0,0.00015973,2]
[408535500,1773855042964,-500.0,0.00015973,2]
[408535501,1773855042974,-168.31736846,0.00015973,2]
[408535502,1773855042983,-500.42157714,0.00015973,2]
[408535503,1773855042992,-517.4992797,0.00015973,2]
[408535504,1773855043003,-166.41691617,0.00015973,2]
[408535505,1773855043013,-191.09594132,0.00015973,2]
[408535506,1773855043023,-500.0,0.00015973,2]
[408535507,1773855043032,-500.0,0.00015973,2]
[408535508,1773855043046,-489.56124248,0.00015973,2]
[408535509,1773855043056,-500.0,0.00015973,2]
[408535510,1773855043065,-500.0,0.00015973,2]
[408535511,1773855043075,-500.0,0.00015973,2]
[408535512,1773855043086,-500.0,0.00015973,2]
[408535513,1773855043095,-163.39305656,0.00015973,2]
[408535514,1773855043105,-500.0,0.00015973,2]
[408535515,1773855043114,-500.0,0.00015973,2]
[408535516,1773855043125,-197.66378783,0.00015975,2]
[408535517,1773855043135,-174.6191914,0.00015975,2]
[408535518,1773855043145,-742.47,0.00015975,2]
[408535519,1773855043155,-168.0,0.00015987,2]
[408535520,1773855043165,-1585.0,0.0001599,2]
[408535521,1773855043176,-199.10037192,0.0001599,2]
[408535522,1773855043185,-199.10037192,0.0001599,2]
[408535523,1773855043195,-500.0,0.00015993,2]
[408535524,1773855043205,-151.0,0.00015997,2]
[408535525,1773855043215,-522.43758601,0.00015998,2]
[408535526,1773855043226,-500.0,0.00015998,2]
[408535527,1773855043235,-500.0,0.00015998,2]
[408535528,1773855043244,-500.0,0.00015998,2]
[408535529,1773855043255,-500.0,0.00015998,2]
[408535530,1773855043264,-500.0,0.00015998,2]
[408535531,1773855043274,-500.0,0.00015998,2]
[408535532,1773855043283,-500.0,0.00015998,2]
[408535534,1773855043292,-500.0,0.00015998,2]
[408535535,1773855043302,-1520.0,0.00015999,2]
[408535536,1773855043311,-1520.0,0.00015999,2]
[408535537,1773855043321,-1520.0,0.00015999,2]
[408535538,1773855043331,-160.0,0.00015999,2]
[408535539,1773855043340,-1520.0,0.00015999,2]
[408535540,1773855043350,-1520.0,0.00015999,2]
[408535541,1773855043360,-1520.0,0.00015999,2]
[408535542,1773855043370,-1520.0,0.00015999,2]
[408535543,1773855043381,-1520.0,0.00015999,2]
[408535544,1773855043392,-1520.0,0.00015999,2]
[408535546,1773855043402,-1520.0,0.00015999,2]
[408535548,1773855043411,-1520.0,0.00015999,2]
[408535550,1773855043420,-1520.0,0.00015999,2]
[408535552,1773855043429,-1520.0,0.00015999,2]
[408535554,1773855043438,-1520.0,0.00015999,2]
[408535556,1773855043447,-1520.0,0.00015999,2]
[408535557,1773855043456,-288.67630649,0.00015999,2]
[408535558,1773855043465,-152.72588312,0.00015999,2]
[408535559,1773855043476,-222798.8496573,0.00015999,2]
[408535560,1773855043485,-46432.0496513,0.00015999,2]
[408535561,1773855043495,-4283.7792101,0.00015999,2]
[408535562,1773855043506,-500.0,0.00015999,2]
[408535563,1773855043515,-500.0,0.00015999,2]
[408535564,1773855043524,-500.0,0.00015999,2]
[408535565,1773855043534,-500.0,0.00015999,2]
[408535566,1773855043544,-186.16,0.00015999,2]
[408535567,1773855043553,-500.0,0.00015999,2]
[408535568,1773855043563,-500.0,0.00015999,2]
[408535569,1773855043572,-500.0,0.00015999,2]
[408535570,1773855043581,-500.0,0.00015999,2]
[408535571,1773855043590,-500.0,0.00015999,2]
[408535572,1773855043599,-523.37568482,0.00015999,2]
[408535573,1773855043609,-162.251722,0.00015999,2]
[408535574,1773855043619,-211.23776,0.00015999,2]
[408535575,1773855043629,-211.23776,0.00015999,2]
[408535576,1773855043640,-211.23776,0.00015999,2]
[408535577,1773855043650,-211.23776,0.00015999,2]
[408535578,1773855043658,-187.572271,0.00015999,2]
[408535579,1773855043668,-514.11832696,0.00015999,2]
[408535580,1773855043680,-500.0,0.00015999,2]
[408535581,1773855043689,-164.50003126,0.00015999,2]
[408535582,1773855043698,-500.0,0.00015999,2]
[408535583,1773855043708,-505.48075268,0.00015999,2]
[408535584,1773855043718,-532.69752959,0.00015999,2]
[408535585,1773855043729,-505.60652917,0.00015999,2]
[408535586,1773855043739,-1488.1893618,0.00015999,2]
[408535587,1773855043748,-237.143998,0.00015999,2]
[408535588,1773855043758,-237.143998,0.00015999,2]
[408535589,1773855043768,-237.143998,0.00015999,2]
[408535590,1773855043777,-237.143998,0.00015999,2]
[408535591,1773855043786,-10132.6664037,0.00015999,2]
[408535592,1773855043796,-569866.0966285,0.00016,2]
[408535593,1773855043828,-716.49020845,0.00016,2]
[408535594,1773855043871,-1454217.72501047,0.00016,2]
[408535595,1773855043990,150.0,0.000162,120]
[408535596,1773855044245,-2467.0026804,0.00016,2]
[408535597,1773855044483,-120.15138732,0.00016,2]
[408535599,1773855046031,-232.256673,0.00015109,7]
[408535600,1773855046042,-3475.79723958,0.000158,2]
[408535601,1773855046053,-3475.79723953,0.0001582,2]
[408535602,1773855046062,-3475.79723953,0.0001584,2]
[408535603,1773855046071,-3475.79723953,0.0001586,2]
[408535604,1773855046080,-3475.79723953,0.0001588,2]
[408535605,1773855046090,-3475.79723953,0.000159,2]
[408535606,1773855046099,-435486.12083777,0.00016,2]
[408535607,1773855046143,-430146.00640163,0.00016,2]
[408535608,1773855046175,-51017.69017851,0.00016,2]
[408535611,1773855228913,150.0,0.000162,120]
[408535614,1773855418346,150.0,0.000162,120]
[408535616,1773855606134,150.0,0.000162,120]
[408535617,1773855666384,-166.66,0.00012786,2]
[408535618,1773855666411,-255.0,0.00012786,2]
[408535619,1773855666436,-250.0,0.0001292,2]
[408535620,1773855666458,-166.66,0.00013055,2]
[408535621,1773855666479,-156.43,0.00013189,2]
[408535622,1773855666501,-250.0,0.00013189,2]
[408535623,1773855666523,-166.66,0.00013324,2]
[408535624,1773855666549,-166.66,0.00013593,2]
[408535625,1773855666570,-1400.0,0.000137,5]
[408535626,1773855666591,-2000.0,0.0001373,2]
[408535627,1773855666614,-2800.0,0.000138,5]
[408535628,1773855666902,-166.66,0.00013862,2]
[408535629,1773855666924,-195.0,0.00013865,2]
[408535630,1773855666945,-1200.0,0.00013897,2]
[408535631,1773855666965,-300.0,0.00013897,2]
[408535632,1773855666985,-182.0,0.00013898,2]
[408535633,1773855667006,-999.99,0.00013899,2]
[408535634,1773855667027,-4200.0,0.000139,5]
[408535635,1773855667046,-9999.99,0.000139,2]
[408535636,1773855667065,-207.12,0.00014041,2]
[408535637,1773855667085,-150.0,0.00014063,2]
[408535638,1773855667106,-300.0,0.00014064,2]
[408535639,1773855667128,-300.0,0.00014064,2]
[408535640,1773855667150,-500.0,0.00014064,2]
[408535641,1773855667170,-300.09997911,0.00014064,2]
[408535642,1773855667191,-600.0,0.00014064,2]
[408535643,1773855667211,-600.0,0.00014064,2]
[408535644,1773855667233,-600.0,0.00014064,2]
[408535645,1773855667252,-248.26320189,0.00014064,2]
[408535646,1773855667273,-250.0,0.00014064,2]
[408535647,1773855667292,-500.0,0.00014077,2]
[408535648,1773855667316,-2500.0,0.00014077,2]
[408535649,1773855667335,-12762.1198,0.00014077,2]
[408535650,1773855667355,-8037.26123908,0.0001408,2]
[408535651,1773855667376,-1242.90857387,0.00014081,2]
[408535652,1773855667398,-1500.0,0.00014082,2]
[408535653,1773855667419,-19627.58493136,0.00014089,2]
[408535654,1773855667439,-450.68428024,0.0001409,2]
[408535655,1773855667460,-156.43,0.00014131,2]
[408535656,1773855667482,-166.66,0.00014131,2]
[408535657,1773855667502,-1079.09384233,0.00014169,2]
[408535658,1773855667522,-2954.84,0.00014173,2]
[408535659,1773855667542,-1208.47,0.00014173,2]
[408535660,1773855667563,-500.0,0.00014173,2]
[408535661,1773855667585,-160.11975848,0.00014173,2]
[408535662,1773855667605,-160.12424924,0.00014173,2]
[408535663,1773855667625,-160.12352153,0.00014173,2]
[408535664,1773855667646,-160.92724101,0.00014173,2]
[408535665,1773855667667,-160.10375546,0.00014173,2]
[408535666,1773855667690,-500.0,0.00014173,2]
[408535667,1773855667713,-614.12831155,0.00014173,2]
[408535668,1773855667734,-500.0,0.00014173,2]
[408535669,1773855667757,-500.0,0.00014173,2]
[408535670,1773855667778,-500.0,0.00014173,2]
[408535671,1773855667799,-500.0,0.00014173,2]
[408535672,1773855667821,-500.0,0.00014173,2]
[408535673,1773855667842,-500.0,0.00014173,2]
[408535674,1773855667865,-500.0,0.00014173,2]
[408535675,1773855667886,-151.0,0.00014174,2]
[408535676,1773855667907,-151.0,0.00014174,2]
[408535677,1773855667928,-299.99,0.00014174,2]
[408535678,1773855667950,-500.0,0.00014176,2]
[408535679,1773855667975,-217.44191022,0.00014176,2]
[408535680,1773855667999,-369.71923478,0.00014176,2]
[408535681,1773855668020,-5348.69,0.00014176,2]
[408535682,1773855668041,-150.99,0.00014176,2]
[408535683,1773855668063,-500.0,0.00014176,2]
[408535684,1773855668085,-362.99918872,0.00014176,2]
[408535685,1773855668106,-500.0,0.00014176,2]
[408535686,1773855668131,-334269.39698113,0.00014177,2]
[408535687,1773855785024,-2500.0,0.00014077,2]
[408535688,1773855785046,-151.0,0.00014081,2]
[408535689,1773855785068,-151.0,0.00014081,2]
[408535690,1773855785089,-151.0,0.00014081,2]
[408535691,1773855785109,-200.0,0.00014081,2]
[408535692,1773855785142,-184.03825259,0.00014081,2]
[408535693,1773855785163,-151.0,0.00014081,2]
[408535694,1773855785184,-151.0,0.00014081,2]
[408535695,1773855785204,-151.0,0.00014081,2]
[408535696,1773855785230,-226.72830535,0.00014081,2]
[408535697,1773855785253,-1461.48110588,0.00014089,2]
[408535698,1773855785279,-617.37656424,0.00014089,2]
[408535699,1773855785301,-1280.52464246,0.00014089,2]
[408535700,1773855785329,-43623.85112948,0.00014165,2]
[408535701,1773855794487,150.0,0.000162,120]
[408535702,1773855982913,150.0,0.000162,120]
[408535703,1773856166163,-616.2,0.0001323,2]
[408535704,1773856166185,-4928.11151959,0.0001334,2]
[408535705,1773856169682,150.0,0.000162,120]
[408535711,1773856232030,-150.0,0.00013133,2]
[408535712,1773856232040,-250.0,0.00013159,2]
[408535713,1773856232049,-500.0,0.00013185,2]
[408535714,1773856232059,-46.4836003,0.00013185,2]
[408535715,1773856232083,-211.5163997,0.00013185,2]
[408535716,1773856232093,-847.38000089,0.0001334,2]
[408535717,1773856232105,-872.48422,0.0001334,2]
[408535718,1773856232117,-318.75595281,0.0001334,2]
[408535719,1773856232128,-267.00830671,0.0001334,2]
[408535720,1773856232139,-1224.69,0.00013438,2]
[408535721,1773856232148,-222.99,0.0001347,3]
[408535722,1773856232157,-798.98,0.00013699,2]
[408535723,1773856232167,-226.33420898,0.00013699,2]
[408535724,1773856232178,-73.66579102,0.00013699,2]
[408535725,1773856232187,-900.0,0.000137,5]
[408535726,1773856232196,-33.57539005,0.00013799,2]
[408535727,1773856232211,-1166.42460995,0.00013799,2]
[408535728,1773856232220,-1900.0,0.000138,5]
[408535729,1773856232230,-194.0,0.00013865,2]
[408535730,1773856232239,-235.0,0.00013899,2]
[408535732,1773856232252,-2900.0,0.000139,5]
[408535733,1773856232262,-3187.84996016,0.0001398,2]
[408535734,1773856232272,-174365.82203984,0.0001398,2]
[408535735,1773856232282,-500.0,0.00014065,2]
[408535736,1773856232291,-2500.0,0.00014077,2]
[408535738,1773856232300,-1087.54500211,0.00014077,2]
[408535740,1773856232309,-7233.53511519,0.00014077,2]
[408535742,1773856232319,-18803.87678937,0.00014091,2]
[408535744,1773856232328,-500.0,0.00014115,2]
[408535745,1773856232337,-500.0,0.00014115,2]
[408535746,1773856232347,-500.0,0.00014115,2]
[408535748,1773856232356,-500.0,0.00014115,2]
[408535749,1773856232365,-500.0,0.00014115,2]
[408535750,1773856232375,-597.01723179,0.00014115,2]
[408535752,1773856232388,-500.0,0.00014145,2]
[408535754,1773856232397,-500.0,0.00014145,2]
[408535756,1773856232406,-500.0,0.00014145,2]
[408535758,1773856232415,-500.0,0.00014145,2]
[408535760,1773856232427,-500.0,0.00014145,2]
[408535761,1773856232435,-500.0,0.00014145,2]
[408535762,1773856232445,-500.0,0.00014145,2]
[408535763,1773856232454,-500.0,0.00014145,2]
[408535764,1773856232463,-500.0,0.00014145,2]
[408535765,1773856232473,-622.75686492,0.00014145,2]
[408535766,1773856232482,-500.0,0.00014145,2]
[408535767,1773856232491,-150.0,0.00014145,2]
[408535768,1773856232500,-286.7839088,0.00014145,2]
[408535769,1773856232510,-4144.88292702,0.00014165,2]
[408535770,1773856232519,-150.0,0.00014168,2]
[408535771,1773856232528,-9955.1691353,0.00014169,2]
[408535772,1773856232538,-1169.1171497,0.00014169,2]
[408535773,1773856232549,-500.0,0.00014173,2]
[408535774,1773856232558,-388.60866893,0.00014173,2]
[408535775,1773856232567,-500.0,0.00014173,2]
[408535776,1773856232577,-369.73783683,0.00014173,2]
[408535777,1773856232586,-500.0,0.00014173,2]
[408535778,1773856232595,-500.0,0.00014173,2]
[408535779,1773856232604,-500.0,0.00014173,2]
[408535780,1773856232613,-649.66,0.00014173,2]
[408535781,1773856232622,-552.64931095,0.00014174,2]
[408535782,1773856232631,-300.45618684,0.00014174,2]
[408535783,1773856232645,-500.0,0.00014176,2]
[408535784,1773856232654,-500.0,0.00014176,2]
[408535785,1773856232663,-500.0,0.00014176,2]
[408535786,1773856232673,-308.46140861,0.00014176,2]
[408535787,1773856232683,-500.0,0.00014176,2]
[408535788,1773856232692,-500.0,0.00014176,2]
[408535789,1773856232702,-574.55,0.00014176,2]
[408535790,1773856232712,-500.0,0.00014176,2]
[408535791,1773856232721,-500.0,0.00014176,2]
[408535792,1773856232730,-500.0,0.00014176,2]
[408535793,1773856232739,-400.21031602,0.00014176,2]
[408535794,1773856232748,-500.0,0.00014176,2]
[408535795,1773856232757,-500.00077669,0.00014176,2]
[408535796,1773856232766,-500.0,0.00014176,2]
[408535797,1773856232775,-500.0,0.00014176,2]
[408535798,1773856232784,-500.0,0.00014176,2]
[408535799,1773856232794,-500.0,0.00014176,2]
[408535800,1773856232803,-500.0,0.00014176,2]
[408535801,1773856232812,-500.0,0.00014176,2]
[408535802,1773856232822,-151.0,0.00014177,2]
[408535803,1773856232831,-199.10037192,0.0001418,2]
[408535804,1773856232840,-532.75297208,0.00014181,2]
[408535805,1773856232849,-151.0,0.00014181,2]
[408535806,1773856232858,-151.0,0.00014181,2]
[408535807,1773856232868,-151.0,0.00014181,2]
[408535808,1773856232877,-200.0,0.00014181,2]
[408535809,1773856232886,-500.0,0.00014181,2]
[408535810,1773856232895,-529.17570437,0.00014181,2]
[408535811,1773856232904,-151.0,0.00014181,2]
[408535812,1773856232914,-151.0,0.00014181,2]
[408535813,1773856232923,-151.0,0.00014181,2]
[408535814,1773856232933,-151.0,0.00014181,2]
[408535815,1773856232942,-500.0,0.00014181,2]
[408535816,1773856232952,-1153.73881168,0.00014189,5]
[408535817,1773856232961,-452.69026892,0.00014189,2]
[408535818,1773856232972,-500.0,0.00014189,2]
[408535819,1773856232981,-24402.35797131,0.0001419,2]
[408535820,1773856232995,-12463.74059129,0.0001419,2]
[408535821,1773856233007,-150582.90233389,0.0001419,2]
[408535822,1773856233018,-1254.41808677,0.0001419,2]
[408535824,1773856238064,-464.31085152,0.0001419,2]
[408535825,1773856238076,-405.99,0.0001419,2]
[408535826,1773856238119,-1343.82,0.0001419,2]
[408535827,1773856238134,-874.14799494,0.0001419,2]
[408535828,1773856238229,-3971.51414421,0.0001419,2]
[408535829,1773856238241,-2808.06866244,0.0001419,2]
[408535838,1773856240240,-943074.91716363,0.0001419,2]
[408535839,1773856240250,-294.6861662,0.00014191,2]
[408535840,1773856240260,-200.0,0.00014274,2]
[408535841,1773856240269,-7233.53511517,0.0001428,2]
[408535842,1773856240281,-1000.0,0.0001429,2]
[408535843,1773856240291,-11701.93,0.0001429,2]
[408535844,1773856240301,-18803.87678929,0.00014292,2]
[408535845,1773856240311,-200.0,0.000143,2]
[408535846,1773856240320,-1087.54500211,0.00014337,2]
[408535847,1773856240330,-500.0,0.00014356,2]
[408535848,1773856240339,-1000.0,0.00014356,2]
[408535849,1773856240349,-1400.0,0.00014356,2]
[408535850,1773856240358,-798.98,0.00014384,2]
[408535851,1773856240368,-500.0,0.00014389,2]
[408535852,1773856240379,-500.0,0.00014389,2]
[408535853,1773856240392,-500.0,0.00014389,2]
[408535854,1773856240402,-329.190207,0.00014389,2]
[408535855,1773856240412,-500.0,0.00014389,2]
[408535856,1773856240421,-526.51350935,0.00014389,2]
[408535857,1773856240434,-500.0,0.00014389,2]
[408535858,1773856240444,-500.0,0.00014389,2]
[408535859,1773856240453,-500.0,0.00014389,2]
[408535860,1773856240463,-500.0,0.00014389,2]
[408535861,1773856240473,-500.0,0.00014389,2]
[408535862,1773856240482,-500.0,0.00014389,2]
[408535863,1773856240492,-500.0,0.00014389,2]
[408535864,1773856240503,-521.68230757,0.00014389,2]
[408535865,1773856240512,-536.98632402,0.00014389,2]
[408535866,1773856240522,-500.0,0.00014389,2]
[408535867,1773856240532,-150.0,0.00014419,2]
[408535868,1773856240541,-150.0,0.00014419,2]
[408535869,1773856240551,-250.0,0.00014446,2]
[408535870,1773856240560,-649.66,0.00014447,2]
[408535871,1773856240571,-500.0,0.00014455,2]
[408535872,1773856240581,-552.64931092,0.00014462,2]
[408535873,1773856240591,-7233.53511517,0.00014482,2]
[408535874,1773856240600,-18803.87678929,0.00014493,2]
[408535875,1773856240608,-9999.99,0.00014504,2]
[408535876,1773856240618,-165.7,0.00014531,2]
[408535877,1773856240627,-500.0,0.00014596,2]
[408535878,1773856240637,-500.0,0.00014596,2]
[408535879,1773856240647,-500.0,0.00014596,2]
[408535880,1773856240657,-500.0,0.00014596,2]
[408535882,1773856240666,-500.0,0.00014596,2]
[408535883,1773856240676,-500.0,0.00014596,2]
[408535884,1773856240686,-500.0,0.00014596,2]
[408535885,1773856240695,-500.0,0.00014596,2]
[408535886,1773856240707,-500.0,0.00014596,2]
[408535887,1773856240716,-1087.54500211,0.00014598,2]
[408535888,1773856240725,-7233.53511517,0.00014685,2]
[408535889,1773856240735,-18803.87678929,0.00014694,2]
[408535890,1773856240745,-500.96706239,0.00014721,2]
[408535891,1773856240754,-1000.0,0.00014721,2]
[408535892,1773856240763,-1000.0,0.00014721,2]
[408535893,1773856240772,-1000.0,0.00014721,2]
[408535894,1773856240781,-500.0,0.00014721,2]
[408535895,1773856240790,-649.66,0.00014721,2]
[408535896,1773856240799,-500.0,0.00014729,2]
[408535897,1773856240809,-200.0,0.00014729,2]
[408535898,1773856240820,-552.64931092,0.00014749,2]
[408535899,1773856240829,-1087.54500211,0.00014858,2]
[408535900,1773856240838,-194.0,0.00014865,2]
[408535901,1773856240847,-151.0,0.00014882,2]
[408535902,1773856240856,-500.0,0.00014882,2]
[408535903,1773856240866,-500.0,0.00014882,2]
[408535904,1773856240875,-500.0,0.00014882,2]
[408535905,1773856240885,-500.0,0.00014882,2]
[408535906,1773856240894,-500.0,0.00014882,2]
[408535907,1773856240904,-500.0,0.00014882,2]
[408535908,1773856240915,-500.0,0.00014882,2]
[408535909,1773856240926,-500.0,0.00014882,2]
[408535910,1773856240936,-500.0,0.00014882,2]
[408535911,1773856240946,-500.0,0.00014882,2]
[408535912,1773856240957,-500.0,0.00014882,2]
[408535913,1773856240966,-500.0,0.00014882,2]
[408535914,1773856240976,-500.0,0.00014882,2]
[408535915,1773856240987,-500.0,0.00014882,2]
[408535916,1773856240996,-301.07682067,0.00014882,2]
[408535917,1773856241005,-500.0,0.00014882,2]
[408535918,1773856241014,-250.0,0.00014882,2]
[408535919,1773856241023,-500.0,0.00014882,2]
[408535920,1773856241033,-250.0,0.00014882,2]
[408535921,1773856241042,-500.0,0.00014882,2]
[408535922,1773856241051,-250.0,0.00014882,2]
[408535923,1773856241061,-500.0,0.00014882,2]
[408535924,1773856241070,-174.61919141,0.00014882,2]
[408535925,1773856241079,-500.0,0.00014882,2]
[408535926,1773856241093,-250.0,0.00014882,2]
[408535927,1773856241102,-500.0,0.00014882,2]
[408535928,1773856241112,-250.0,0.00014882,2]
[408535929,1773856241122,-500.0,0.00014882,2]
[408535930,1773856241131,-250.0,0.00014882,2]
[408535931,1773856241141,-200.0,0.00014882,2]
[408535932,1773856241150,-500.0,0.00014882,2]
[408535933,1773856241160,-250.0,0.00014882,2]
[408535934,1773856241169,-250.0,0.00014882,2]
[408535935,1773856241178,-250.0,0.00014882,2]
[408535936,1773856241188,-250.0,0.00014882,2]
[408535937,1773856241197,-250.0,0.00014882,2]
[408535938,1773856241206,-250.0,0.00014882,2]
[408535939,1773856241216,-250.0,0.00014882,2]
[408535940,1773856241225,-151.0,0.00014882,2]
[408535941,1773856241234,-669.13395939,0.00014882,2]